fUST/lending_fUST_20250528
["ID","MTS","AMOUNT","RATE_DAILY","PERIOD"]
[362588483,1748368235414,-171.0,0.00023,7]
[362588484,1748368235427,-430.0,0.00023013,2]
[362588485,1748368235441,-430.0,0.00023013,2]
[362588486,1748368235454,-609.48,0.00023013,2]
[362588487,1748368235466,-181.59,0.00023013,2]
[362588488,1748368235480,-462.38,0.00023013,2]
[362588489,1748368235493,-518.84,0.00023013,2]
[362588490,1748368235506,-1086.11669982,0.00023107,8]
[362588491,1748368235518,-1086.11669982,0.00023245,8]
[362588492,1748368235528,-430.0,0.00023287,2]
[362588493,1748368235539,-430.0,0.00023287,2]
[362588494,1748368235550,-609.48,0.00023287,2]
[362588495,1748368235560,-462.38,0.00023287,2]
[362588496,1748368235571,-518.84,0.00023287,2]
[362588497,1748368235582,-228469.24550971,0.000233,2]
[362588498,1748368235601,-433.8591904,0.000233,2]
[362589023,1748368243271,-500.0,0.00019177,2]
[362589025,1748368243283,-217.97526449,0.00019177,2]
[362589028,1748368243294,-92.71473551,0.00019177,2]
[362592019,1748368628505,49073.21,0.00024658,120]
[362592577,1748369203172,427.99041,0.00013699,2]
[362592604,1748369432106,-4160.07797565,0.00018132,2]
[362592606,1748369432116,-279.969293,0.00018315,2]
[362592607,1748369432127,-208.95496559,0.00019078,2]
[362592608,1748369432136,-150.96204538,0.00019078,2]
[362592609,1748369432145,-300.0,0.00019175,2]
[362592610,1748369432155,-300.0,0.00019175,2]
[362592611,1748369432165,-300.0,0.00019176,2]
[362592612,1748369432175,-1200.0,0.00019176,2]
[362592613,1748369432183,-500.0,0.00019177,2]
[362592614,1748369432191,-500.0,0.00019177,2]
[362592615,1748369432200,-500.0,0.00019177,2]
[362592616,1748369432207,-500.0,0.00019177,2]
[362592617,1748369432215,-376.52930003,0.00019177,2]
[362592618,1748369432222,-500.0,0.00019177,2]
[362592619,1748369432229,-500.0,0.00019177,2]
[362592620,1748369432237,-135.82354172,0.00019177,2]
[362592621,1748369432247,-439.09205963,0.00019177,2]
[362592622,1748369432254,-500.0,0.00019177,2]
[362592623,1748369432261,-500.0,0.00019177,2]
[362592624,1748369432269,-500.0,0.00019177,2]
[362592625,1748369432277,-500.0,0.00019177,2]
[362592626,1748369432284,-500.0,0.00019177,2]
[362592627,1748369432291,-500.0,0.00019177,2]
[362592628,1748369432302,-500.0,0.00019177,2]
[362592629,1748369432309,-500.0,0.00019177,2]
[362592630,1748369432318,-500.0,0.00019177,2]
[362592631,1748369432327,-500.0,0.00019177,2]
[362592632,1748369432335,-500.0,0.00019177,2]
[362592633,1748369432344,-500.0,0.00019177,2]
[362592634,1748369432354,-500.0,0.00019177,2]
[362592635,1748369432363,-500.0,0.00019177,2]
[362592636,1748369432373,-500.0,0.00019177,2]
[362592637,1748369432383,-500.0,0.00019177,2]
[362592638,1748369432393,-500.0,0.00019177,2]
[362592639,1748369432404,-306.30146494,0.00019177,2]
[362592640,1748369432415,-500.0,0.00019177,2]
[362592642,1748369432425,-500.0,0.00019177,2]
[362592644,1748369432435,-500.0,0.00019177,2]
[362592646,1748369432448,-402.48074581,0.00019178,2]
[362592649,1748369432458,-475.69,0.00019178,2]
[362592650,1748369432468,-430.0,0.00019178,2]
[362592651,1748369432477,-301.02993744,0.00019178,2]
[362592652,1748369432486,-430.0,0.00019178,2]
[362592653,1748369432496,-453.94893715,0.00019178,2]
[362592654,1748369432506,-450.0,0.00019178,2]
[362592655,1748369432516,-450.0,0.00019178,2]
[362592656,1748369432526,-430.0,0.00019178,2]
[362592657,1748369432535,-430.0,0.00019178,2]
[362592658,1748369432545,-391.78819971,0.00019178,2]
[362592659,1748369432555,-430.0,0.00019178,2]
[362592660,1748369432564,-404.39570015,0.00019178,2]
[362592661,1748369432577,-527.42368243,0.00019178,2]
[362592662,1748369432584,-430.0,0.00019178,2]
[362592663,1748369432594,-430.0,0.00019178,2]
[362592664,1748369432604,-430.0,0.00019178,2]
[362592665,1748369432614,-430.0,0.00019178,2]
[362592666,1748369432624,-430.0,0.00019178,2]
[362592667,1748369432635,-430.0,0.00019178,2]
[362592668,1748369432645,-430.0,0.00019178,2]
[362592669,1748369432655,-430.0,0.00019178,2]
[362592670,1748369432665,-406.70279181,0.00019178,2]
[362592671,1748369432675,-432.44396354,0.00019178,2]
[362592672,1748369432686,-403.91394328,0.00019178,2]
[362592673,1748369432697,-504.19260453,0.00019178,2]
[362592674,1748369432707,-430.0,0.00019178,2]
[362592675,1748369432717,-430.73774382,0.00019178,2]
[362592676,1748369432727,-430.0,0.00019178,2]
[362592677,1748369432738,-430.0,0.00019178,2]
[362592678,1748369432748,-430.0,0.00019178,2]
[362592679,1748369432758,-34.00499233,0.00019178,2]
[362592755,1748369438330,-395.99500767,0.00019178,2]
[362592758,1748369438341,-283.65157709,0.00019178,2]
[362592760,1748369438351,-430.0,0.00019178,2]
[362592762,1748369438360,-400.0,0.00019178,2]
[362592763,1748369438369,-87.3380957,0.00019178,2]
[362592766,1748369438382,-312.6619043,0.00019178,2]
[362592768,1748369438393,-430.0,0.00019178,2]
[362592770,1748369438402,-430.0,0.00019178,2]
[362592772,1748369438415,-401.11114694,0.00019178,2]
[362592774,1748369438425,-400.0,0.00019178,2]
[362592776,1748369438435,-430.0,0.00019178,2]
[362592778,1748369438445,-400.0,0.00019178,2]
[362592780,1748369438455,-400.0,0.00019178,2]
[362592782,1748369438465,-430.0,0.00019178,2]
[362592784,1748369438474,-430.0,0.00019178,2]
[362592786,1748369438484,-430.0,0.00019178,2]
[362592788,1748369438494,-430.0,0.00019178,2]
[362592804,1748369438642,-430.0,0.00019178,2]
[362592807,1748369438654,-430.0,0.00019178,2]
[362592809,1748369438665,-430.0,0.00019178,2]
[362592811,1748369438675,-458.72354344,0.00019178,2]
[362592813,1748369438685,-430.0,0.00019178,2]
[362592815,1748369438695,-430.0,0.00019178,2]
[362592817,1748369438705,-430.0,0.00019178,2]
[362592819,1748369438715,-430.0,0.00019178,2]
[362592821,1748369438725,-430.0,0.00019178,2]
[362592823,1748369438734,-450.0,0.00019178,2]
[362592825,1748369438744,-430.0,0.00019178,2]
[362592827,1748369438754,-430.0,0.00019178,2]
[362592829,1748369438763,-430.0,0.00019178,2]
[362592831,1748369438774,-415.03256498,0.00019178,2]
[362592833,1748369438784,-450.0,0.00019178,2]
[362592835,1748369438794,-430.0,0.00019178,2]
[362592837,1748369438803,-430.0,0.00019178,2]
[362592839,1748369438819,-400.53730689,0.00019178,2]
[362592841,1748369438828,-430.0,0.00019178,2]
[362592843,1748369438838,-430.0,0.00019178,2]
[362592845,1748369438848,-430.0,0.00019178,2]
[362592847,1748369438859,-430.0,0.00019178,2]
[362592849,1748369438868,-430.0,0.00019178,2]
[362592851,1748369438878,-430.0,0.00019178,2]
[362592853,1748369438889,-395.77549673,0.00019178,2]
[362592856,1748369438902,-134.87450327,0.00019178,2]
[362592857,1748369438911,-430.0,0.00019178,2]
[362592859,1748369438921,-442.93548135,0.00019178,2]
[362592861,1748369438931,-304.90451865,0.00019178,2]
[362592864,1748369438941,-430.0,0.00019178,2]
[362592866,1748369438951,-430.0,0.00019178,2]
[362592868,1748369438960,-124.79549673,0.00019178,2]
[362592870,1748369438972,-305.20450327,0.00019178,2]
[362592871,1748369438981,-430.93,0.00019178,2]
[362592873,1748369438991,-430.0,0.00019178,2]
[362592875,1748369439001,-500.0,0.00019178,2]
[362592877,1748369439010,-208.95496558,0.00019404,2]
[362592879,1748369439020,-525.09977558,0.00019452,2]
[362592881,1748369439029,-430.0,0.00019452,2]
[362592883,1748369439039,-450.0,0.00019452,2]
[362592885,1748369439049,-160.17923578,0.00019452,2]
[362592887,1748369439062,-269.82076422,0.00019452,2]
[362592889,1748369439071,-158.35978774,0.00019452,2]
[362593015,1748369440296,-271.01900369,0.00019177,2]
[362593311,1748369443194,-28.98099631,0.00019177,2]
[362593313,1748369443204,-430.0,0.00019178,2]
[362593315,1748369443214,-430.0,0.00019452,2]
[362593317,1748369443224,-430.0,0.00019452,2]
[362593319,1748369443234,-430.0,0.00019452,2]
[362593321,1748369443243,-430.0,0.00019452,2]
[362593323,1748369443253,-430.0,0.00019452,2]
[362593325,1748369443263,-430.0,0.00019452,2]
[362593327,1748369443273,-430.0,0.00019452,2]
[362593329,1748369443283,-430.0,0.00019452,2]
[362593331,1748369443292,-430.0,0.00019452,2]
[362593333,1748369443301,-430.0,0.00019452,2]
[362593337,1748369443311,-430.0,0.00019452,2]
[362593340,1748369443321,-430.0,0.00019452,2]
[362593343,1748369443331,-430.0,0.00019452,2]
[362593345,1748369443341,-430.0,0.00019452,2]
[362593347,1748369443351,-430.93,0.00019452,2]
[362593349,1748369443361,-430.0,0.00019452,2]
[362593351,1748369443370,-430.0,0.00019452,2]
[362593354,1748369443381,-500.0,0.00019452,2]
[362593356,1748369443391,-184.76783934,0.00019456,2]
[362593358,1748369443403,-500.0,0.00019457,2]
[362593360,1748369443412,-392.87680303,0.00019457,2]
[362593362,1748369443422,-500.0,0.00019457,2]
[362593364,1748369443431,-500.0,0.00019457,2]
[362593366,1748369443441,-500.0,0.00019457,2]
[362593368,1748369443451,-448.91821403,0.00019457,2]
[362593370,1748369443461,-500.0,0.00019457,2]
[362593372,1748369443472,-500.0,0.00019457,2]
[362593374,1748369443482,-500.0,0.00019457,2]
[362593376,1748369443492,-500.0,0.00019457,2]
[362593378,1748369443501,-500.0,0.00019457,2]
[362593380,1748369443511,-500.0,0.00019457,2]
[362593382,1748369443521,-500.0,0.00019457,2]
[362593384,1748369443530,-289.23229563,0.00019457,2]
[362593386,1748369443540,-500.0,0.00019457,2]
[362593388,1748369443549,-616.86539809,0.00019457,2]
[362593390,1748369443560,-500.0,0.00019457,2]
[362593392,1748369443570,-500.0,0.00019457,2]
[362593394,1748369443579,-500.0,0.00019457,2]
[362593396,1748369443589,-500.0,0.00019457,2]
[362593398,1748369443599,-500.0,0.00019457,2]
[362593399,1748369443609,-500.0,0.00019457,2]
[362593401,1748369443619,-500.0,0.00019457,2]
[362593403,1748369443629,-500.0,0.00019457,2]
[362593405,1748369443639,-160.0,0.0001946,2]
[362593407,1748369443650,-430.0,0.0001946,2]
[362593409,1748369443659,-430.0,0.0001946,2]
[362593411,1748369443669,-737.32,0.0001946,2]
[362593413,1748369443679,-430.0,0.0001946,2]
[362593415,1748369443689,-430.0,0.0001946,2]
[362593417,1748369443698,-437.48,0.0001946,2]
[362593419,1748369443708,-430.0,0.0001946,2]
[362593421,1748369443717,-430.0,0.0001946,2]
[362593423,1748369443728,-430.0,0.0001946,2]
[362593425,1748369443738,-430.0,0.0001946,2]
[362593427,1748369443747,-430.0,0.0001946,2]
[362593429,1748369443757,-430.0,0.0001946,2]
[362593431,1748369443767,-430.0,0.0001946,2]
[362593433,1748369443777,-430.0,0.0001946,2]
[362593435,1748369443787,-464.39179376,0.0001946,2]
[362593436,1748369443797,-430.0,0.0001946,2]
[362593438,1748369443809,-430.0,0.0001946,2]
[362593440,1748369443821,-430.0,0.0001946,2]
[362593442,1748369443832,-430.0,0.0001946,2]
[362593444,1748369443842,-430.0,0.0001946,2]
[362593446,1748369443853,-430.0,0.0001946,2]
[362593448,1748369443863,-442.58782504,0.0001946,2]
[362593450,1748369443873,-430.0,0.0001946,2]
[362593452,1748369443883,-430.0,0.0001946,2]
[362593454,1748369443894,-430.0,0.0001946,2]
[362593456,1748369443904,-430.0,0.0001946,2]
[362593458,1748369443914,-430.0,0.0001946,2]
[362593459,1748369443923,-430.0,0.0001946,2]
[362593460,1748369443932,-430.0,0.0001946,2]
[362593461,1748369443943,-430.0,0.0001946,2]
[362593462,1748369443952,-439.15417083,0.0001946,2]
[362593463,1748369443962,-430.0,0.0001946,2]
[362593464,1748369443971,-430.0,0.0001946,2]
[362593465,1748369443981,-430.0,0.0001946,2]
[362593466,1748369443991,-430.0,0.0001946,2]
[362593467,1748369444000,-430.0,0.0001946,2]
[362593468,1748369444010,-430.0,0.0001946,2]
[362593469,1748369444020,-430.0,0.0001946,2]
[362593470,1748369444029,-430.0,0.0001946,2]
[362593471,1748369444038,-420.51233043,0.0001946,2]
[362593472,1748369444047,-842.5625,0.0001946,2]
[362593473,1748369444056,-12656.54583329,0.0001946,2]
[362593474,1748369444066,-151.0,0.00019546,2]
[362593475,1748369444075,-430.0,0.00019556,2]
[362593476,1748369444084,-450.0,0.00019556,2]
[362593477,1748369444094,-400.0,0.00019556,2]
[362593478,1748369444103,-450.0,0.00019556,2]
[362593479,1748369444113,-400.0,0.00019556,2]
[362593480,1748369444122,-301.1248116,0.00019556,2]
[362593481,1748369444132,-430.0,0.00019556,2]
[362593482,1748369444142,-450.0,0.00019556,2]
[362593483,1748369444151,-400.0,0.00019556,2]
[362593484,1748369444161,-450.0,0.00019556,2]
[362593485,1748369444170,-430.0,0.00019556,2]
[362593486,1748369444180,-432.36260101,0.00019556,2]
[362593488,1748369444190,-400.0,0.00019556,2]
[362593489,1748369444199,-500.01100002,0.00019556,2]
[362593491,1748369444209,-450.0,0.00019556,2]
[362593493,1748369444219,-249.15449928,0.00019556,2]
[362593495,1748369444229,-450.0,0.00019556,2]
[362593498,1748369444239,-450.0,0.00019556,2]
[362593500,1748369444249,-450.0,0.00019556,2]
[362593502,1748369444259,-400.0,0.00019556,2]
[362593504,1748369444270,-430.0,0.00019556,2]
[362593506,1748369444280,-305.19891667,0.00019556,2]
[362593508,1748369444289,-450.0,0.00019556,2]
[362593510,1748369444299,-430.0,0.00019556,2]
[362593512,1748369444308,-450.0,0.00019556,2]
[362593514,1748369444318,-430.0,0.00019556,2]
[362593516,1748369444327,-450.0,0.00019556,2]
[362593517,1748369444337,-450.0,0.00019556,2]
[362593519,1748369444347,-238.6573862,0.00019556,2]
[362593521,1748369444357,-430.0,0.00019556,2]
[362593523,1748369444366,-400.0,0.00019556,2]
[362593525,1748369444376,-450.0,0.00019556,2]
[362593527,1748369444386,-450.0,0.00019556,2]
[362593529,1748369444396,-450.0,0.00019556,2]
[362593531,1748369444405,-450.0,0.00019556,2]
[362593533,1748369444415,-430.0,0.00019556,2]
[362593535,1748369444425,-336.44219916,0.00019556,2]
[362593537,1748369444435,-400.0,0.00019556,2]
[362593539,1748369444445,-450.0,0.00019556,2]
[362593541,1748369444454,-450.0,0.00019556,2]
[362593543,1748369444464,-430.0,0.00019556,2]
[362593545,1748369444474,-400.0,0.00019556,2]
[362593547,1748369444484,-415.71153475,0.00019556,2]
[362593550,1748369444495,-450.0,0.00019556,2]
[362593552,1748369444505,-450.0,0.00019556,2]
[362593554,1748369444515,-400.0,0.00019556,2]
[362593556,1748369444524,-430.0,0.00019556,2]
[362593558,1748369444534,-450.0,0.00019556,2]
[362593560,1748369444544,-450.0,0.00019556,2]
[362593562,1748369444554,-430.0,0.00019556,2]
[362593564,1748369444564,-430.0,0.00019556,2]
[362593566,1748369444575,-400.0,0.00019556,2]
[362593568,1748369444584,-400.0,0.00019556,2]
[362593570,1748369444594,-400.0,0.00019556,2]
[362593572,1748369444603,-430.0,0.00019556,2]
[362593574,1748369444612,-450.0,0.00019556,2]
[362593576,1748369444622,-430.0,0.00019556,2]
[362593578,1748369444631,-430.0,0.00019556,2]
[362593579,1748369444641,-400.0,0.00019556,2]
[362593581,1748369444652,-400.0,0.00019556,2]
[362593583,1748369444662,-430.0,0.00019556,2]
[362593586,1748369444673,-400.0,0.00019556,2]
[362593588,1748369444682,-430.0,0.00019556,2]
[362593590,1748369444691,-430.0,0.00019556,2]
[362593592,1748369444701,-406.22550796,0.00019556,2]
[362593594,1748369444711,-450.0,0.00019556,2]
[362593596,1748369444720,-529.81324343,0.00019556,2]
[362593598,1748369444730,-406.72044272,0.00019556,2]
[362593599,1748369444739,-400.0,0.00019556,2]
[362593601,1748369444750,-430.0,0.00019556,2]
[362593603,1748369444759,-430.0,0.00019556,2]
[362593605,1748369444768,-400.0,0.00019556,2]
[362593607,1748369444778,-414.05136376,0.00019556,2]
[362593609,1748369444787,-400.0,0.00019556,2]
[362593612,1748369444798,-400.0,0.00019556,2]
[362593613,1748369444807,-400.0,0.00019556,2]
[362593615,1748369444820,-400.0,0.00019556,2]
[362593618,1748369444830,-400.0,0.00019556,2]
[362593620,1748369444840,-400.0,0.00019556,2]
[362593622,1748369444849,-430.0,0.00019556,2]
[362593624,1748369444862,-430.0,0.00019556,2]
[362593626,1748369444872,-300.0,0.00019556,2]
[362593627,1748369444881,-430.0,0.00019556,2]
[362593630,1748369444892,-430.0,0.00019556,2]
[362593631,1748369444902,-430.0,0.00019556,2]
[362593633,1748369444912,-430.0,0.00019556,2]
[362593635,1748369444922,-400.0,0.00019556,2]
[362593637,1748369444931,-430.0,0.00019556,2]
[362593639,1748369444941,-400.0,0.00019556,2]
[362593641,1748369444951,-400.0,0.00019556,2]
[362593643,1748369444960,-430.0,0.00019556,2]
[362593645,1748369444970,-430.0,0.00019556,2]
[362593647,1748369444980,-430.0,0.00019556,2]
[362593649,1748369444990,-430.0,0.00019556,2]
[362593652,1748369445000,-430.0,0.00019556,2]
[362593653,1748369445009,-400.0,0.00019556,2]
[362593655,1748369445019,-430.0,0.00019556,2]
[362593657,1748369445028,-430.0,0.00019556,2]
[362593660,1748369445038,-430.0,0.00019556,2]
[362593662,1748369445051,-490.0,0.00019556,2]
[362593664,1748369445060,-400.0,0.00019556,2]
[362593666,1748369445069,-430.0,0.00019556,2]
[362593668,1748369445079,-430.0,0.00019556,2]
[362593670,1748369445089,-430.0,0.00019556,2]
[362593672,1748369445098,-430.0,0.00019556,2]
[362593674,1748369445107,-480.1771151,0.00019556,2]
[362593676,1748369445117,-430.0,0.00019556,2]
[362593678,1748369445126,-449.82792523,0.00019556,2]
[362593680,1748369445135,-430.0,0.00019556,2]
[362593682,1748369445145,-430.0,0.00019556,2]
[362593684,1748369445155,-430.0,0.00019556,2]
[362593686,1748369445164,-430.0,0.00019556,2]
[362593688,1748369445173,-430.0,0.00019556,2]
[362593690,1748369445182,-430.0,0.00019556,2]
[362593692,1748369445192,-430.0,0.00019556,2]
[362593694,1748369445201,-504.65418729,0.00019556,2]
[362593696,1748369445210,-430.0,0.00019556,2]
[362593698,1748369445220,-430.0,0.00019556,2]
[362593700,1748369445229,-430.0,0.00019556,2]
[362593702,1748369445238,-430.0,0.00019556,2]
[362593704,1748369445248,-430.0,0.00019556,2]
[362593706,1748369445258,-430.0,0.00019556,2]
[362593708,1748369445267,-430.0,0.00019556,2]
[362593710,1748369445277,-171.7923627,0.00019556,2]
[362593712,1748369445286,-430.0,0.00019556,2]
[362593714,1748369445296,-500.0,0.00019556,2]
[362593716,1748369445305,-430.0,0.00019556,2]
[362593718,1748369445314,-430.0,0.00019556,2]
[362593720,1748369445324,-430.0,0.00019556,2]
[362593722,1748369445333,-430.0,0.00019556,2]
[362593724,1748369445343,-430.0,0.00019556,2]
[362593726,1748369445352,-430.0,0.00019556,2]
[362593728,1748369445362,-430.0,0.00019556,2]
[362593740,1748369445478,-456.05015292,0.00019556,2]
[362593742,1748369445488,-430.0,0.00019556,2]
[362593745,1748369445498,-430.0,0.00019556,2]
[362593747,1748369445508,-430.0,0.00019556,2]
[362593749,1748369445518,-430.0,0.00019556,2]
[362593751,1748369445527,-407.89875041,0.00019556,2]
[362593754,1748369445543,-22.10124959,0.00019556,2]
[362593757,1748369445553,-430.0,0.00019556,2]
[362593760,1748369445562,-430.0,0.00019556,2]
[362593762,1748369445572,-430.0,0.00019556,2]
[362593764,1748369445582,-430.0,0.00019556,2]
[362593766,1748369445592,-561.02,0.00019556,2]
[362593768,1748369445603,-430.0,0.00019556,2]
[362593770,1748369445613,-430.0,0.00019556,2]
[362593772,1748369445623,-430.0,0.00019556,2]
[362593774,1748369445633,-430.0,0.00019556,2]
[362593776,1748369445643,-430.0,0.00019556,2]
[362593778,1748369445653,-430.0,0.00019556,2]
[362593780,1748369445663,-430.0,0.00019556,2]
[362593782,1748369445672,-430.0,0.00019556,2]
[362593784,1748369445681,-430.0,0.00019556,2]
[362593786,1748369445691,-430.0,0.00019556,2]
[362593788,1748369445700,-430.0,0.00019556,2]
[362593790,1748369445709,-430.0,0.00019556,2]
[362593793,1748369445719,-430.0,0.00019556,2]
[362593796,1748369445728,-430.0,0.00019556,2]
[362593798,1748369445738,-363.59601542,0.00019556,2]
[362593800,1748369445748,-430.0,0.00019556,2]
[362593802,1748369445757,-510.0,0.00019556,2]
[362593804,1748369445767,-400.0,0.00019556,2]
[362593806,1748369445776,-401.99410861,0.00019556,2]
[362593808,1748369445787,-400.0,0.00019556,2]
[362593810,1748369445796,-430.0,0.00019556,2]
[362593812,1748369445806,-430.0,0.00019556,2]
[362593814,1748369445819,-430.0,0.00019556,2]
[362593816,1748369445829,-430.0,0.00019556,2]
[362593818,1748369445839,-381.4688784,0.00019556,2]
[362593820,1748369445849,-430.0,0.00019556,2]
[362593822,1748369445859,-430.0,0.00019556,2]
[362593824,1748369445868,-430.0,0.00019556,2]
[362593825,1748369445878,-430.0,0.00019559,2]
[362593827,1748369445888,-214.94,0.00019559,2]
[362593829,1748369445898,-430.0,0.00019559,2]
[362593831,1748369445909,-430.0,0.00019559,2]
[362593834,1748369445919,-430.0,0.00019559,2]
[362593835,1748369445928,-430.0,0.00019559,2]
[362593837,1748369445938,-319.96103027,0.00019559,2]
[362593880,1748369446348,-110.03896973,0.00019559,2]
[362593883,1748369446358,-430.0,0.00019559,2]
[362593885,1748369446369,-393.57421028,0.00019559,2]
[362593887,1748369446381,-36.42578972,0.00019559,2]
[362593889,1748369446390,-430.0,0.00019559,2]
[362593891,1748369446401,-220.15523228,0.00019559,2]
[362593893,1748369446412,-209.84476772,0.00019559,2]
[362593895,1748369446421,-430.0,0.00019559,2]
[362593897,1748369446431,-148.35550052,0.00019559,2]
[362595948,1748370412960,-204.95056745,0.00015309,2]
[362595950,1748370419465,-75.01872555,0.00015309,2]
[362595951,1748370419489,-335.09127445,0.00015838,2]
[362595954,1748370444168,-5.21585869,0.00015838,2]
[362595955,1748370444191,-208.95496558,0.000159,2]
[362595956,1748370444213,-126.13630887,0.000159,2]
[362595962,1748370520657,301.999999,0.0002,120]
[362595964,1748370545191,-469.4126017,0.00015229,2]
[362595965,1748370545227,-4406.88501257,0.00015486,2]
[362595966,1748370573125,-433.19021951,0.00015486,2]
[362595967,1748370573149,-300.0,0.00015641,2]
[362595968,1748370573177,-645.14460722,0.00015641,2]
[362595969,1748370573202,-500.0,0.00015641,2]
[362595970,1748370573225,-341.65728904,0.00015641,2]
[362595971,1748370573250,-19308.48344854,0.00015642,2]
[362595972,1748370575081,-5591.51655146,0.00015642,2]
[362595973,1748370575104,-30.15646925,0.000159,2]
[362595974,1748370575126,-185.17,0.0001599,3]
[362595975,1748370575147,-300.0,0.00015997,2]
[362595976,1748370575172,-300.0,0.00015998,2]
[362595977,1748370575192,-258.0,0.00015998,2]
[362595978,1748370575214,-300.0,0.00015998,2]
[362595979,1748370575235,-1200.0,0.00015998,2]
[362595980,1748370575256,-500.02609133,0.00015999,2]
[362595981,1748370575279,-500.0,0.00015999,2]
[362595982,1748370575299,-500.0,0.00015999,2]
[362595983,1748370575321,-500.0,0.00015999,2]
[362595984,1748370575343,-500.0,0.00015999,2]
[362595985,1748370575365,-500.0,0.00015999,2]
[362595986,1748370575386,-500.0,0.00015999,2]
[362595987,1748370575408,-500.0,0.00015999,2]
[362595988,1748370575430,-244.89400727,0.00015999,2]
[362595989,1748370575453,-500.0,0.00015999,2]
[362595990,1748370575474,-500.0,0.00015999,2]
[362595991,1748370575496,-500.0,0.00015999,2]
[362595992,1748370575518,-500.0,0.00015999,2]
[362595993,1748370575540,-500.0,0.00015999,2]
[362595994,1748370575562,-500.0,0.00015999,2]
[362595995,1748370575583,-500.0,0.00015999,2]
[362595996,1748370575607,-500.0,0.00015999,2]
[362595997,1748370575631,-500.0,0.00015999,2]
[362595998,1748370575655,-451.99158112,0.00015999,2]
[362595999,1748370575677,-500.0,0.00015999,2]
[362596000,1748370575699,-400.0,0.00015999,2]
[362596001,1748370575722,-500.0,0.00015999,2]
[362596002,1748370575744,-500.0,0.00015999,2]
[362596003,1748370575767,-500.0,0.00015999,2]
[362596004,1748370575790,-194645.68767527,0.00016,3]
[362596005,1748370575812,-842.5625,0.00016,3]
[362596006,1748370575835,-500.0,0.00016438,2]
[362596007,1748370575861,-253.51418817,0.00016438,2]
[362596008,1748370575883,-500.0,0.00016438,2]
[362596009,1748370575905,-500.0,0.00016438,2]
[362596010,1748370575927,-500.0,0.00016438,2]
[362596011,1748370575949,-500.0,0.00016438,2]
[362596012,1748370575972,-651.36898124,0.000168,2]
[362596013,1748370575994,-420.0,0.00017107,2]
[362596014,1748370576015,-192.499984,0.0001733,2]
[362596015,1748370576039,-507.87602639,0.0001736,3]
[362596016,1748370576060,-370.34,0.0001736,3]
[362596017,1748370576082,-240.0,0.0001749,2]
[362596018,1748370576103,-420.0,0.00017491,2]
[362596019,1748370576125,-923.0,0.00017579,2]
[362596020,1748370576145,-176.80455064,0.00017744,2]
[362596021,1748370576169,-651.36898122,0.00018076,2]
[362596022,1748370576195,-4488.84941529,0.000184,2]
[362596023,1748370576222,-4488.84941528,0.000184,2]
[362596024,1748370576249,-587.94686516,0.000184,2]
[362596080,1748370632373,-300.0,0.00018399,2]
[362596082,1748370632384,-3900.90255012,0.000184,2]